Workbook

Sheet из 11
C1: ФЕВРАЛЬ | D1: 2011
C4: должность | D4: оклад | L4: -13% | M4: 0.3 | N4: ШР | O4: ШР | P4: 0.3 | Q4: -13% | S4: -0.13 | T4: 0.3 | U4: ШР | V4: ШР | W4: 0.3 | X4: -0.13
D5: шт.расп. | E5: 0.3 | F5: -НДФЛ | L5: =M5*0.87 -> 9579.57 | M5: =N5*1.3 -> 11011 | N5: =CEILING(O5,10) -> 8470 | O5: 8461.54 | P5: =O5*1.3 -> 11000.002 | Q5: =P5*0.87 -> 9570.00174 | S5: 9500 | T5: =S5/0.87 -> 10919.54023 | U5: =T5/1.3 -> 8399.646331 | V5: =CEILING(U5,10) -> 8400 | W5: =V5*1.3 -> 10920 | X5: =W5*0.87 -> 9500.4 | Y5: =X5 -> 9500.4
C6: директор | D6: 21930 | E6: =D6*1.3 -> 28509 | F6: =E6*0.87 -> 24802.83 | L6: 10450.44 | M6: 12012 | N6: 9240 | O6: 9230.77 | P6: 12000.001 | Q6: 10440.00087 | S6: =S5+500 -> 10000 | T6: 11494.25287 | U6: 8841.73298 | V6: 8850 | W6: 11505 | X6: 10009.35 | Y6: 10009.35
C7: зам.дир. | D7: 16000 | E7: 20800 | F7: 18096 | L7: 11310 | M7: 13000 | N7: 10000 | O7: 10000 | P7: 13000 | Q7: 11310 | S7: 10500 | T7: 12068.96552 | U7: 9283.819629 | V7: 9290 | W7: 12077 | X7: 10506.99 | Y7: 10506.99
C8: маркетолог | D8: 16000 | E8: 20800 | F8: 18096 | L8: 12180.87 | M8: 14001 | N8: 10770 | O8: 10769.23 | P8: 13999.999 | Q8: 12179.99913 | S8: 11000 | T8: 12643.67816 | U8: 9725.906278 | V8: 9730 | W8: 12649 | X8: 11004.63 | Y8: 11004.63
C9: гл.бух | D9: 15000 | E9: 19500 | F9: 16965 | L9: 13051.74 | M9: 15002 | N9: 11540 | O9: 11538.46 | P9: 14999.998 | Q9: 13049.99826 | S9: 11500 | T9: 13218.3908 | U9: 10167.99293 | V9: 10170 | W9: 13221 | X9: 11502.27 | Y9: 11502.27
C10: бух | D10: 14500 | E10: 18850 | F10: 16399.5 | L10: 13922.61 | M10: 16003 | N10: 12310 | O10: 12307.69 | P10: 15999.997 | Q10: 13919.99739 | S10: 12000 | T10: 13793.10345 | U10: 10610.07958 | V10: 10620 | W10: 13806 | X10: 12011.22 | Y10: 12011.22
C11: секретарь | D11: 13200 | E11: 17160 | F11: 14929.2 | L11: 14793.48 | M11: 17004 | N11: 13080 | O11: 13076.92 | P11: 16999.996 | Q11: 14789.99652 | S11: 12500 | T11: 14367.81609 | U11: 11052.16622 | V11: 11060 | W11: 14378 | X11: 12508.86 | Y11: 12508.86
C12: логист | D12: 11530 | E12: 14989 | F12: 13040.43 | L12: 15664.35 | M12: 18005 | N12: 13850 | O12: 13846.15 | P12: 17999.995 | Q12: 15659.99565 | S12: 13000 | T12: 14942.52874 | U12: 11494.25287 | V12: 11500 | W12: 14950 | X12: 13006.5 | Y12: 13006.5
C13: нач. оптовик | D13: 15248 | E13: 19822.4 | F13: 17245.488 | L13: 16535.22 | M13: 19006 | N13: 14620 | O13: 14615.39 | P13: 19000.007 | Q13: 16530.00609 | S13: 13500 | T13: 15517.24138 | U13: 11936.33952 | V13: 11940 | W13: 15522 | X13: 13504.14 | Y13: 13504.14
C14: оптовик | D14: 12180 | E14: 15834 | F14: 13775.58 | L14: 17406.09 | M14: 20007 | N14: 15390 | O14: 15384.62 | P14: 20000.006 | Q14: 17400.00522 | S14: 14000 | T14: 16091.95402 | U14: 12378.42617 | V14: 12380 | W14: 16094 | X14: 14001.78 | Y14: 14001.78
C15: нач. розницы | D15: 13480 | E15: 17524 | F15: 15245.88 | L15: 18276.96 | M15: 21008 | N15: 16160 | O15: 16153.85 | P15: 21000.005 | Q15: 18270.00435 | S15: 14500 | T15: 16666.66667 | U15: 12820.51282 | V15: 12830 | W15: 16679 | X15: 14510.73 | Y15: 14510.73
C16: розница | D16: 8450 | E16: 10985 | F16: 9556.95 | L16: 19147.83 | M16: 22009 | N16: 16930 | O16: 16923.08 | P16: 22000.004 | Q16: 19140.00348 | S16: 15000 | T16: 17241.37931 | U16: 13262.59947 | V16: 13270 | W16: 17251 | X16: 15008.37 | Y16: 15008.37
C17: тех.специалист | D17: 11200 | E17: 14560 | F17: 12667.2 | L17: 20018.7 | M17: 23010 | N17: 17700 | O17: 17692.31 | P17: 23000.003 | Q17: 20010.00261 | S17: 15500 | T17: 17816.09195 | U17: 13704.68612 | V17: 13710 | W17: 17823 | X17: 15506.01 | Y17: 15506.01
C18: нач. склада | D18: 14160 | E18: 18408 | F18: 16014.96 | L18: 20889.57 | M18: 24011 | N18: 18470 | O18: 18461.54 | P18: 24000.002 | Q18: 20880.00174 | S18: 16000 | T18: 18390.8046 | U18: 14146.77277 | V18: 14150 | W18: 18395 | X18: 16003.65 | Y18: 16003.65
C19: склад | D19: 12480 | E19: 16224 | F19: 14114.88 | L19: 21760.44 | M19: 25012 | N19: 19240 | O19: 19230.77 | P19: 25000.001 | Q19: 21750.00087 | S19: 16500 | T19: 18965.51724 | U19: 14588.85942 | V19: 14590 | W19: 18967 | X19: 16501.29 | Y19: 16501.29
C20: нач. ИТ | D20: 20460 | E20: 26598 | F20: 23140.26 | L20: 22620 | M20: 26000 | N20: 20000 | O20: 20000 | P20: 26000 | Q20: 22620 | S20: 17000 | T20: 19540.22989 | U20: 15030.94607 | V20: 15040 | W20: 19552 | X20: 17010.24 | Y20: 17010.24
C21: ИТ | E21: 0 | F21: 0 | L21: 23490.87 | M21: 27001 | N21: 20770 | O21: 20769.23 | P21: 26999.999 | Q21: 23489.99913 | S21: 17500 | T21: 20114.94253 | U21: 15473.03271 | V21: 15480 | W21: 20124 | X21: 17507.88 | Y21: 17507.88
C22: водитель | D22: 6000 | E22: 7800 | F22: 6786 | O22: =P22/1.3 -> 20769.23077 | P22: 27000
C23: уборщица | D23: 5800 | E23: 7540 | F23: 6559.8
C24: дворник | E24: 777
C26: ОТПУСКНЫЕ | E26: сумма выплат | F26: дневной заработок | G26: дневной заработок | L26: Расчет отпускных в ситуации, когда все 12 месяцев отработаны полностью. Формула следующая: Средний дневной заработок = Сумма учитываемых в расчетном периоде выплат ÷ 29,4 × 12 месяцев. Расчет отпускных в ситуации, когда расчетный период отработан частично. В этом случае нужно применять другую формулу: Средний дневной заработок = Сумма учитываемых в расчетном периоде выплат ÷ (29,4 × Количество полностью отработанных в расчетном периоде месяцев + Количество календарных дней во всех неполных месяцах). При этом количество календарных дней в каждом неполном месяце определяется определяется следующим образом: Количество дней в каждом неполном месяце = 29,4 : Количество календарных дней в месяце, отработанном не полностью х Количество календарных дней, приходящихся на отработанное в данном месяце время. Подсчитав средний дневной заработок, его остается лишь умножить на количество календарных дней отпуска работника. На этом расчет отпускных закончен.
C27: Луговской | E27: =SUM(E28:E38) -> 206523 | F27: =E27/11/29.4 -> 638.5992579 | G27: =E27/353/11*12 -> 638.2374453
D28: 2010-06-01 | E28: 13092 | F28: 1 | H28: 28 | I28: =$G$27*H28 -> 17870.64847
D29: 2010-07-01 | E29: 16450 | F29: =F28+1 -> 2 | I29: =H28*F27 -> 17880.77922
D30: 2010-08-01 | E30: 18040 | F30: =F29+1 -> 3
D31: 2010-09-01 | E31: 18040 | F31: 4
D32: 2010-10-01 | E32: 18040 | F32: 5
D33: 2010-11-01 | E33: 17400 | F33: 6
D34: 2010-12-01 | E34: 20400 | F34: 7
D35: 2011-01-01 | E35: 17452 | F35: 8
D36: 2011-02-01 | E36: 17452 | F36: 9 | L36: =353/12 -> 29.41666667 | M36: 12 праздничных дней, которые не учитываются при оплате
D37: 2011-03-01 | E37: 29067 | F37: 10
D38: 2011-04-01 | E38: 21090 | F38: 11
R39: Терентьева | T39: =T40*R40 -> 31314.57272
C40: Ермушко2 | E40: =SUM(E41:E51) -> 225606.5323 | F40: =E40/353/F41*12 -> 697.2130794 | G40: 28 | H40: =F40*G40 -> 19521.96622 | J40: Андронников2 | L40: =SUM(L41:L51) -> 184169.3333 | M40: =L40/353/M41*12 -> 569.1558074 | N40: 28 | O40: =M40*N40 -> 15936.36261 | R40: 28 | S40: =SUM(S41:S51) -> 361888.3508 | T40: =S40/353/T41*12 -> 1118.377597
D41: 2010-10-01 | E41: 18040 | F41: =F42+1 -> 11 | K41: 2010-10-01 | L41: 16798 | M41: =M42+1 -> 11 | R41: 2010-11-01 | S41: 26723 | T41: =T42+1 -> 11
D42: 2010-11-01 | E42: 18040 | F42: =F43+1 -> 10 | K42: 2010-11-01 | L42: 16775 | M42: =M43+1 -> 10 | R42: 2010-12-01 | S42: 33286 | T42: 10
D43: 2010-12-01 | E43: 14903.43478 | F43: 9 | K43: 2010-12-01 | L43: 18776 | M43: 9 | R43: 2011-01-01 | S43: 33097 | T43: 9
D44: 2011-01-01 | E44: 18092 | F44: 8 | K44: 2011-01-01 | L44: 16828 | M44: 8 | R44: 2011-02-01 | S44: 32805 | T44: 8
D45: 2011-02-01 | E45: 20002 | F45: 7 | K45: 2011-02-01 | L45: 1802 | M45: 7 | R45: 2011-03-01 | S45: 53008 | T45: 7
D46: 2011-03-01 | E46: 30302 | F46: 6 | K46: 2011-03-01 | L46: 32402 | M46: 6 | R46: 2011-04-01 | S46: 39596 | T46: 6
D47: 2011-04-01 | E47: 20002 | F47: 5 | K47: 2011-04-01 | L47: 18902 | M47: 5 | R47: 2011-05-01 | S47: 36709 | T47: 5
D48: 2011-05-01 | E48: 20002 | F48: 4 | K48: 2011-05-01 | L48: 18903 | M48: 4 | R48: 2011-06-01 | S48: 38154.05865 | T48: 4
D49: 2011-06-01 | E49: 28223.09751 | F49: 3 | K49: 2011-06-01 | L49: 6283.333333 | M49: 3 | R49: 2011-07-01 | S49: 34246.00415 | T49: 3
D50: 2011-07-01 | E50: 18050 | F50: 2 | K50: 2011-07-01 | L50: 15850 | M50: 2 | R50: 2011-08-01 | S50: 34264.288 | T50: 2
D51: 2011-08-01 | E51: 19950 | F51: 1 | K51: 2011-08-01 | L51: 20850 | M51: 1 | R51: 2011-09-01 | T51: 1

Sheet январь
C1: январь | E1: 2013
C3: Фамилия Имя Отчество
D4: надбавка | E4: оклад | G4: налоги | H4: начислено | I4: отпускные | K4: премия | M4: вычеты | N4: ИТОГО | O4: аванс | P4: карта | Q4: РКО
B5: 1 | C5: Андронников
B6: 2 | C6: Бенюх
B7: 3 | C7: Горбачев
B8: 4 | C8: Добрыгин | D8: 3000 | E8: 25000 | G8: =E8*18% -> 4500 | H8: =E8+D8-G8 -> 23500 | K8: 3600 | M8: 1400 | N8: =E8-G8+I8+K8-M8 -> 22700 | O8: 3400 | P8: 12340 | Q8: =N8-O8-P8 -> 6960
B9: 5 | C9: Ермушко | D9: 2940 | E9: 24000 | G9: =E9*18% -> 4320 | H9: =E9+D9-G9 -> 22620 | K9: 3700 | M9: 1300 | N9: 22080 | O9: 3300 | P9: 12340 | Q9: 6440
B10: 6 | C10: Жилин | D10: 2880 | E10: 23000 | G10: 4140 | H10: 21740 | K10: 3800 | M10: 1200 | N10: 21460 | O10: 3200 | P10: 12340 | Q10: 5920
B11: 7 | C11: Золотарев | D11: 2820 | E11: 22000 | G11: 3960 | H11: 20860 | K11: 3900 | M11: 1100 | N11: 20840 | O11: 3100 | P11: 12340 | Q11: 5400
B12: 8 | C12: Иванов | D12: 2760 | E12: 21000 | G12: 3780 | H12: 19980 | K12: 4000 | M12: 1000 | N12: =E12-G12+I12+K12-M12 -> 20220 | O12: 3000 | P12: 12340 | Q12: =N12-O12-P12 -> 4880
B13: 9 | C13: Кожемякин | D13: 2700 | E13: 20000 | G13: 3600 | H13: 19100 | K13: 4100 | M13: 900 | N13: =E13-G13+I13+K13-M13 -> 19600 | O13: 2900 | P13: 12340 | Q13: =N13-O13-P13 -> 4360
B14: 10 | C14: Липатов | D14: 2640 | E14: 19000 | G14: 3420 | H14: 18220 | K14: 4200 | M14: 800 | N14: =E14-G14+I14+K14-M14 -> 18980 | O14: 2800 | P14: 12340 | Q14: =N14-O14-P14 -> 3840
B15: 11 | C15: Милов | D15: 2580 | E15: 18000 | G15: 3240 | H15: 17340 | K15: 4300 | M15: 700 | N15: 18360 | O15: 2700 | P15: 12340 | Q15: 3320
B16: 12 | C16: Николаев | D16: 2520 | E16: 17000 | G16: 3060 | H16: 16460 | K16: 4400 | M16: 600 | N16: 17740 | O16: 2600 | P16: 12340 | Q16: 2800
B17: 13 | C17: Оленик | D17: 2460 | E17: 16000 | G17: 2880 | H17: 15580 | K17: 4500 | M17: 500 | N17: 17120 | O17: 2500 | P17: 12340 | Q17: 2280
B18: 14 | C18: Полуэктов | D18: 2400 | E18: 15000 | G18: 2700 | H18: 14700 | K18: 4600 | M18: 400 | N18: 16500 | O18: 2400 | P18: 12340 | Q18: 1760
B19: 15 | C19: Ростов | D19: 2340 | E19: 14000 | G19: 2520 | H19: 13820 | K19: 4700 | M19: 300 | N19: 15880 | O19: 2300 | P19: 12340 | Q19: 1240
B20: 16 | C20: Седов | D20: 2280 | E20: 13000 | G20: 2340 | H20: 12940 | K20: 4800 | M20: 200 | N20: 15260 | O20: 2200 | P20: 12340 | Q20: 720
B21: 17 | C21: Титов
B22: 18 | C22: Ульянов
B23: 19 | C23: Филинов
B24: 20 | C24: Хвостов
C25: Итого
S29: ="ведомость за "&TEXT(C1,0) -> ведомость за январь
R30: 4 | S30: Добрыгин
S31: начислено | T31: =OFFSET(H4,$R$30,0) -> 23500 | U31: ="("&TEXT(OFFSET(D4,$R$30,0),"# ##0")&" + "&TEXT(OFFSET(E4,$R$30,0)-OFFSET(G4,$R$30,0),"# ##0")&")" -> (3 000 + 20 500)
S32: премия: | T32: =OFFSET(K4,$R$30,0) -> 3600
S33: вычеты: | T33: =OFFSET(M4,$R$30,0) -> 1400
S34: ИТОГО: | T34: =OFFSET(N4,$R$30,0) -> 22700
S35: из них: аванс: | T35: =OFFSET(O4,$R$30,0) -> 3400
S36: на карту: | T36: =OFFSET(P4,$R$30,0) -> 12340
S37: на руки: | T37: =OFFSET(Q4,$R$30,0) -> 6960
